lending/lending_fUSD_20250122
["ID","MTS","AMOUNT","RATE_DAILY","PERIOD"]
[349998371,1737557453817,-825.45,0.00021272,2]
[349998372,1737557453827,-934.81,0.00021272,2]
[349998373,1737557453836,-500.0,0.00021272,2]
[349998374,1737557453847,-736.01,0.00021272,2]
[349998375,1737557453857,-2660.64,0.00021272,2]
[349998376,1737557453866,-1935.82,0.00021272,2]
[349998377,1737557453876,-1205.12,0.00021272,2]
[349998378,1737557453886,-824.97,0.00021272,2]
[349998379,1737557453895,-2125.92,0.00021272,2]
[349998380,1737557453905,-2545.99,0.00021272,2]
[349998381,1737557453915,-500.0,0.00021272,2]
[349998382,1737557453924,-500.0,0.00021272,2]
[349998383,1737557453934,-1092.62,0.00021272,2]
[349998384,1737557453943,-1036.25,0.00021272,2]
[349998385,1737557453952,-2681.83,0.00021272,2]
[349998386,1737557453961,-917.68,0.00021272,2]
[349998387,1737557453971,-621.35795537,0.00021273,2]
[349998388,1737557453980,-500.0,0.00021273,2]
[349998389,1737557453990,-500.0,0.00021273,2]
[349998390,1737557454000,-500.69113799,0.00021273,2]
[349998391,1737557454009,-530.79613968,0.00021273,2]
[349998392,1737557454018,-151.08149732,0.00021273,2]
[349998393,1737557454028,-501.82071939,0.00021273,2]
[349998394,1737557454037,-529.48360434,0.00021273,2]
[349998395,1737557454047,-150.0,0.00021273,2]
[349998396,1737557454056,-500.0,0.00021273,2]
[349998397,1737557454067,-719.39,0.00021273,2]
[349998398,1737557454077,-500.0,0.00021273,2]
[349998399,1737557454086,-770.66,0.00021273,2]
[349998400,1737557454095,-500.0,0.00021273,2]
[349998401,1737557454106,-632.64,0.00021273,2]
[349998402,1737557454116,-1542.39,0.00021273,2]
[349998403,1737557454125,-927.54,0.00021273,2]
[349998404,1737557454135,-1312.16,0.00021273,2]
[349998405,1737557454144,-528.70322812,0.00021273,2]
[349998406,1737557454154,-1235.59,0.00021273,2]
[349998407,1737557454163,-2653.79,0.00021273,2]
[349998408,1737557454172,-547.05,0.00021273,2]
[349998409,1737557454183,-5085.72,0.00021273,2]
[349998410,1737557454192,-500.0,0.00021273,2]
[349998411,1737557454201,-792.84,0.00021273,2]
[349998412,1737557454210,-752.41,0.00021273,2]
[349998413,1737557454219,-803.88,0.00021273,2]
[349998414,1737557454228,-1884.47,0.00021273,2]
[349998415,1737557454237,-500.0,0.00021273,2]
[349998416,1737557454248,-894.32,0.00021273,2]
[349998417,1737557454257,-990.32,0.00021273,2]
[349998418,1737557454266,-1184.8,0.00021273,2]
[349998419,1737557454275,-500.0,0.00021273,2]
[349998420,1737557454284,-1000.0,0.00021273,2]
[349998421,1737557454294,-707.37,0.00021273,2]
[349998422,1737557454303,-500.0,0.00021273,2]
[349998423,1737557454314,-1562.57,0.00021273,2]
[349998424,1737557454324,-1409.06,0.00021273,2]
[349998425,1737557454334,-220.78486877,0.00021279,2]
[349998426,1737557454343,-421.33458611,0.00021296,2]
[349998427,1737557454352,-167.08419073,0.000213,2]
[349998428,1737557454361,-1766.96960544,0.000213,2]
[349998429,1737557454371,-561.2007921,0.000213,2]
[349998430,1737557454380,-194.32161878,0.000213,2]
[349998431,1737557454389,-979.40018166,0.000213,2]
[349998432,1737557454399,-289.66566007,0.000213,3]
[349998433,1737557454409,-150.0,0.00021309,2]
[349998434,1737557454418,-220.78486877,0.00021314,2]
[349998435,1737557454428,-150.61,0.00021342,2]
[349998436,1737557454438,-220.78486877,0.00021348,2]
[349998437,1737557454447,-1000.0,0.0002135,2]
[349998438,1737557454456,-421.33458607,0.00021365,2]
[349998439,1737557454466,-1696.80971404,0.00021372,2]
[349998440,1737557454476,-2087.0,0.00021377,2]
[349998441,1737557454486,-220.78486877,0.00021383,2]
[349998442,1737557454495,-234.31364821,0.0002139,2]
[349998443,1737557454505,-234.31364821,0.0002139,2]
[349998444,1737557454514,-21262.0211369,0.00021393,2]
[349998445,1737557454524,-9222.6017778,0.00021393,2]
[349998446,1737557454533,-816.02610266,0.00021393,2]
[349998447,1737557454543,-312.59257284,0.00021394,2]
[349998448,1737557454552,-151.0,0.00021396,2]
[349998449,1737557454562,-301.266657,0.00021396,2]
[349998450,1737557454573,-202.887859,0.00021396,2]
[349998451,1737557454582,-151.0,0.00021396,2]
[349998452,1737557454592,-151.0,0.00021396,2]
[349998453,1737557454601,-151.0,0.00021396,2]
[349998454,1737557454611,-151.0,0.00021396,2]
[349998455,1737557454620,-150.0,0.00021397,4]
[349998456,1737557454630,-150.0,0.00021397,4]
[349998457,1737557454640,-214.41344537,0.00021399,2]
[349998458,1737557454649,-528.31,0.00021399,2]
[349998459,1737557454659,-151.0,0.00021399,2]
[349998460,1737557454669,-151.0,0.00021399,2]
[349998461,1737557454679,-151.0,0.00021399,2]
[349998462,1737557454688,-151.0,0.00021399,2]
[349998463,1737557454698,-151.0,0.00021399,2]
[349998464,1737557454708,-151.0,0.00021399,2]
[349998465,1737557454717,-151.0,0.00021399,2]
[349998466,1737557454727,-500.0,0.00021399,2]
[349998467,1737557454737,-500.0,0.00021399,2]
[349998468,1737557454746,-500.0,0.00021399,2]
[349998469,1737557454760,-316.11,0.00021399,2]
[349998470,1737557454769,-151.0,0.00021399,2]
[349998471,1737557454779,-151.0,0.00021399,2]
[349998472,1737557454789,-231.2343,0.00021399,2]
[349998473,1737557454799,-231.2343,0.00021399,2]
[349998474,1737557454808,-151.0,0.00021399,2]
[349998475,1737557454820,-9103.717932,0.00021399,2]
[349998476,1737557454831,-9103.717932,0.00021399,2]
[349998477,1737557454841,-151.0,0.00021399,2]
[349998478,1737557454851,-2755.82580949,0.000214,2]
[349998479,1737557454861,-326736.3672342,0.000214,2]
[349998480,1737557454872,-622809.82399092,0.000214,2]
[349998481,1737557455119,-40540.07380102,0.000214,2]
[349998482,1737557455146,-718.65452936,0.00021172,2]
[349998483,1737557455544,-500.0,0.00020898,2]
[349998484,1737557455554,-500.0,0.00020966,2]
[349998485,1737557455564,-500.0,0.00020966,2]
[349998486,1737557455575,-500.0,0.00020967,2]
[349998487,1737557455630,-2684.78547064,0.00021172,2]
[349998488,1737557455640,-357.33999999,0.00021172,2]
[349998489,1737557455650,-511.24854493,0.0002124,2]
[349998490,1737557455659,-500.0,0.0002124,2]
[349998491,1737557455669,-277597.62598444,0.000214,2]
[349998492,1737557455681,-59052.47622362,0.000214,2]
[349998493,1737557455691,-48597.52377638,0.000214,2]
[349998494,1737557455702,-6241.37355,0.000214,2]
[349998495,1737557455713,-418.49876,0.000214,2]
[349998496,1737557455725,-1567.5,0.000214,2]
[349998497,1737557455736,-417.68999999,0.000214,2]
[349998498,1737557456072,-500.0,0.00020898,2]
[349998499,1737557456081,-481.96693255,0.00020966,2]
[349998500,1737557456093,-18.03306745,0.00020966,2]
[349998501,1737557456102,-194.44383279,0.00020966,2]
[349998502,1737557456111,-500.0,0.00020967,2]
[349998503,1737557456120,-308.20284933,0.00021172,2]
[349998504,1737557456130,-500.0,0.0002124,2]
[349998505,1737557456139,-76266.32025343,0.000214,2]
[349998506,1737557456150,-25735.000001,0.000214,2]
[349998507,1737557456211,-76.54120871,0.000214,2]
[349998508,1737557456222,-866.6599916,0.000214,2]
[349998509,1737557456268,-671.9950701,0.000214,2]
[349998510,1737557456773,-0.1189582,0.000214,2]
[349998511,1737557456785,-348836.16713581,0.000214,2]
[349998512,1737557456798,-12674.517128,0.000214,2]
[349998513,1737557457009,302.012223,0.00024,120]
[349998514,1737557457128,-428.315005,0.00020898,2]
[349998515,1737557457140,-71.684995,0.00020898,2]
[349998516,1737557457150,-500.0,0.00020898,2]
[349998517,1737557457160,-500.0,0.00020899,2]
[349998518,1737557457170,-500.0,0.00020966,2]
[349998519,1737557457179,-500.0,0.00020966,2]
[349998520,1737557457189,-597.83243973,0.00020967,2]
[349998521,1737557457199,-280.00307714,0.00020967,2]
[349998522,1737557457210,-219.99692286,0.00020967,2]
[349998523,1737557457220,-607.71025725,0.00021172,2]
[349998524,1737557457231,-1327.69281989,0.000214,2]
[349998525,1737557457242,-11626.6322567,0.000214,2]
[349998526,1737557457254,-2698.75,0.000214,2]
[349998527,1737557457266,-544.10502,0.000214,2]
[349998528,1737557457278,-5198.4449465,0.000214,2]
[349998529,1737557457291,-411.02692,0.000214,2]
[349998531,1737557862794,160.34,0.00010137,2]
[349998533,1737558551144,-550.0,0.00015,2]
[349998534,1737558551169,-600.0,0.00017,2]
[349998535,1737558551191,-727.11,0.00018082,2]
[349998536,1737558551212,-202.99532453,0.00018548,2]
[349998558,1737558631612,-297.00467547,0.00018548,2]
[349998560,1737558631622,-500.0,0.00018548,2]
[349998562,1737558631632,-172.62,0.00019689,2]
[349998564,1737558631641,-179.01,0.00019705,2]
[349998566,1737558631650,-250.0,0.00019706,2]
[349998567,1737558631660,-941.94,0.00019733,2]
[349998568,1737558631669,-187.96,0.00019814,2]
[349998569,1737558631678,-209.37,0.00019838,2]
[349998570,1737558631688,-250.0,0.00019896,2]
[349998571,1737558631698,-1216.37849487,0.0002,4]
[349998574,1737558631718,-1609.3986,0.0002,4]
[349998575,1737558631729,-1133.55417094,0.0002,4]
[349998576,1737558631742,-468.53761822,0.00020011,2]
[349998577,1737558631763,-2668.17438178,0.00020011,2]
[349998578,1737558631772,-913.43,0.00020041,2]
[349998579,1737558631781,-66.78106178,0.00020125,2]
[349998580,1737558631793,-104.13893822,0.00020125,2]
[349998581,1737558631802,-155.24,0.00020133,30]
[349998582,1737558631812,-698.17663965,0.000202,2]
[349998583,1737558631914,-1564.82336035,0.000202,2]
[349998584,1737558631924,-1000.0,0.00020211,2]
[349998585,1737558631934,-727.11,0.00020346,2]
[349998586,1737558631943,-150.0,0.00020356,2]
[349998587,1737558631953,-150.0,0.00020356,2]
[349998588,1737558631961,-150.0,0.00020356,2]
[349998589,1737558631971,-500.0,0.0002074,2]
[349998590,1737558631981,-251.9276,0.00020798,2]
[349998591,1737558631991,-200.0,0.00020811,2]
[349998592,1737558632000,-426.09811326,0.00020823,2]
[349998593,1737558632010,-426.09811326,0.00020825,2]
[349998594,1737558632020,-4223.74408878,0.00020829,2]
[349998595,1737558632029,-426.09811326,0.00020837,2]
[349998596,1737558632038,-426.09811326,0.00020847,2]
[349998597,1737558632047,-4223.74408878,0.00020854,2]
[349998598,1737558632056,-467.58908085,0.00020865,2]
[349998599,1737558632065,-902.962,0.00020866,2]
[349998600,1737558632075,-158.61225839,0.00020867,2]
[349998601,1737558632084,-200.0,0.00020868,2]
[349998602,1737558632094,-426.09811326,0.00020875,2]
[349998603,1737558632107,-200.0,0.00020875,2]
[349998604,1737558632117,-4223.74408878,0.00020878,2]
[349998605,1737558632126,-876.66,0.00020897,2]
[349998606,1737558632135,-543.03,0.00020897,2]
[349998607,1737558632145,-602.91,0.00020897,2]
[349998609,1737558632349,-1091.56,0.00020897,2]
[349998610,1737558632359,-1295.24,0.00020897,2]
[349998611,1737558632368,-500.0,0.00020897,2]
[349998612,1737558632378,-883.02,0.00020897,2]
[349998614,1737558632388,-1504.28,0.00020897,2]
[349998616,1737558632397,-939.39,0.00020897,2]
[349998618,1737558632406,-855.54,0.00020897,2]
[349998620,1737558632415,-550.71,0.00020897,2]
[349998621,1737558632425,-2463.76,0.00020897,2]
[349998622,1737558632434,-500.0,0.00020897,2]
[349998623,1737558632443,-500.0,0.00020897,2]
[349998624,1737558632452,-549.5,0.00020897,2]
[349998625,1737558632461,-500.0,0.00020897,2]
[349998626,1737558632470,-657.55,0.00020898,2]
[349998627,1737558632480,-500.0,0.00020898,2]
[349998628,1737558632491,-500.0,0.00020898,2]
[349998629,1737558632500,-500.0,0.00020898,2]
[349998630,1737558632509,-500.0,0.00020898,2]
[349998631,1737558632518,-500.0,0.00020898,2]
[349998632,1737558632528,-500.0,0.00020898,2]
[349998633,1737558632537,-500.0,0.00020898,2]
[349998634,1737558632547,-500.0,0.00020898,2]
[349998635,1737558632556,-500.0,0.00020898,2]
[349998636,1737558632565,-500.0,0.00020898,2]
[349998637,1737558632575,-500.0,0.00020898,2]
[349998638,1737558632584,-500.0,0.00020898,2]
[349998639,1737558632593,-500.0,0.00020898,2]
[349998640,1737558632602,-500.0,0.00020898,2]
[349998641,1737558632611,-500.0,0.00020898,2]
[349998642,1737558632621,-500.0,0.00020898,2]
[349998643,1737558632631,-500.0,0.00020898,2]
[349998644,1737558632640,-500.0,0.00020898,2]
[349998645,1737558632650,-500.0,0.00020898,2]
[349998646,1737558632659,-500.0,0.00020898,2]
[349998647,1737558632668,-500.0,0.00020898,2]
[349998648,1737558632677,-500.0,0.00020898,2]
[349998649,1737558632687,-1999.0,0.00020898,2]
[349998650,1737558632697,-1999.0,0.00020898,2]
[349998651,1737558632706,-1999.0,0.00020898,2]
[349998652,1737558632715,-1999.0,0.00020898,2]
[349998653,1737558632724,-1999.0,0.00020898,2]
[349998654,1737558632735,-1999.0,0.00020898,2]
[349998655,1737558632745,-1999.0,0.00020898,2]
[349998656,1737558632754,-1999.0,0.00020898,2]
[349998657,1737558632763,-500.0,0.00020898,2]
[349998658,1737558632772,-1999.0,0.00020898,2]
[349998659,1737558632781,-1999.0,0.00020898,2]
[349998660,1737558632790,-1999.0,0.00020898,2]
[349998661,1737558632799,-1999.0,0.00020898,2]
[349998662,1737558632809,-1999.0,0.00020898,2]
[349998663,1737558632818,-1999.0,0.00020898,2]
[349998664,1737558632827,-1999.0,0.00020898,2]
[349998665,1737558632836,-1999.0,0.00020898,2]
[349998666,1737558632845,-1999.0,0.00020898,2]
[349998667,1737558632855,-1999.0,0.00020898,2]
[349998668,1737558632864,-1999.0,0.00020898,2]
[349998669,1737558632873,-1977.0,0.00020898,2]
[349998670,1737558632882,-638.33,0.00020898,2]
[349998671,1737558632892,-500.0,0.00020898,2]
[349998672,1737558632901,-500.0,0.00020898,2]
[349998673,1737558632910,-503.93,0.00020898,2]
[349998674,1737558632920,-500.0,0.00020898,2]
[349998675,1737558632929,-500.0,0.00020898,2]
[349998676,1737558632940,-95.83712714,0.00020898,2]
[349998677,1737558632953,-404.16287286,0.00020898,2]
[349998678,1737558632963,-252.04861847,0.00020898,2]
[349998679,1737558632975,-247.95138153,0.00020898,2]
[349998680,1737558632987,-123.39861847,0.00020898,2]
[349998681,1737558632999,-28.64240455,0.00020898,2]
[349998682,1737558633009,-500.0,0.00020898,2]
[349998683,1737558633019,-500.0,0.00020898,2]
[349998684,1737558633028,-500.0,0.00020898,2]
[349998685,1737558633038,-500.0,0.00020898,2]
[349998686,1737558633048,-500.0,0.00020898,2]
[349998687,1737558633057,-500.0,0.00020898,2]
[349998688,1737558633067,-500.0,0.00020898,2]
[349998689,1737558633077,-500.0,0.00020898,2]
[349998690,1737558633086,-500.0,0.00020898,2]
[349998691,1737558633098,-525.53,0.00020898,2]
[349998692,1737558633109,-671.12,0.00020898,2]
[349998693,1737558633119,-500.0,0.00020898,2]
[349998694,1737558633129,-500.0,0.00020898,2]
[349998695,1737558633139,-500.0,0.00020898,2]
[349998696,1737558633150,-500.0,0.00020898,2]
[349998697,1737558633160,-500.0,0.00020898,2]
[349998698,1737558633170,-500.0,0.00020898,2]
[349998699,1737558633180,-500.0,0.00020898,2]
[349998700,1737558633191,-500.0,0.00020898,2]
[349998701,1737558633201,-500.0,0.00020898,2]
[349998702,1737558633211,-500.0,0.00020898,2]
[349998703,1737558633222,-500.0,0.00020898,2]
[349998704,1737558633233,-696.78,0.00020898,2]
[349998705,1737558633243,-500.0,0.00020898,2]
[349998706,1737558633253,-667.59,0.00020898,2]
[349998707,1737558633263,-659.66,0.00020898,2]
[349998708,1737558633273,-511.58551769,0.00020898,2]
[349998709,1737558633283,-665.66,0.00020898,2]
[349998710,1737558633293,-500.0,0.00020898,2]
[349998711,1737558633303,-1617.38,0.00020898,2]
[349998712,1737558633312,-500.0,0.00020898,2]
[349998713,1737558633322,-500.0,0.00020898,2]
[349998714,1737558633332,-500.0,0.00020898,2]
[349998715,1737558633341,-342.95,0.00020898,2]
[349998716,1737558633351,-1408.07,0.00020898,2]
[349998717,1737558633360,-500.0,0.00020898,2]
[349998718,1737558633370,-500.0,0.00020898,2]
[349998719,1737558633379,-500.0,0.00020898,2]
[349998720,1737558633389,-500.0,0.00020898,2]
[349998721,1737558633399,-500.0,0.00020898,2]
[349998722,1737558633408,-500.0,0.00020898,2]
[349998723,1737558633418,-500.0,0.00020898,2]
[349998724,1737558633431,-500.0,0.00020898,2]
[349998725,1737558633443,-500.0,0.00020898,2]
[349998726,1737558633454,-500.0,0.00020898,2]
[349998727,1737558633466,-500.0,0.00020898,2]
[349998728,1737558633476,-500.0,0.00020898,2]
[349998729,1737558633488,-500.0,0.00020898,2]
[349998730,1737558633498,-500.0,0.00020898,2]
[349998731,1737558633509,-500.0,0.00020898,2]
[349998732,1737558633518,-500.0,0.00020898,2]
[349998733,1737558633528,-500.0,0.00020898,2]
[349998734,1737558633538,-500.0,0.00020898,2]
[349998735,1737558633548,-580.39,0.00020898,2]
[349998736,1737558633558,-603.55,0.00020898,2]
[349998737,1737558633567,-500.0,0.00020898,2]
[349998738,1737558633577,-500.0,0.00020898,2]
[349998739,1737558633587,-500.0,0.00020898,2]
[349998740,1737558633596,-500.0,0.00020898,2]
[349998741,1737558633606,-804.73,0.00020898,2]
[349998742,1737558633616,-500.0,0.00020898,2]
[349998743,1737558633626,-6133.959552,0.00020898,2]
[349998744,1737558633647,-11274.8300241,0.00020898,2]
[349998745,1737558633658,-7226.98461606,0.00020898,2]
[349998750,1737558638269,-500.0,0.00020897,2]
[349998751,1737558638278,-500.0,0.00020897,2]
[349998752,1737558638289,-500.0,0.00020897,2]
[349998753,1737558638298,-29844.0,0.00020898,2]
[349998754,1737558638310,-3992.5,0.00020898,2]
[349998755,1737558638321,-3395.61564401,0.00020898,2]
[349998756,1737558638333,-66880.35746188,0.00020898,2]
[349998757,1737558638343,-200.71351714,0.000209,2]
[349998758,1737558638352,-467.58908082,0.00020913,2]
[349998759,1737558638362,-200.0,0.00020928,2]
[349998760,1737558638371,-4223.74408878,0.00020941,2]
[349998761,1737558638380,-4223.74408878,0.00020942,2]
[349998762,1737558638390,-200.0,0.00020942,2]
[349998763,1737558638399,-200.71351706,0.00020948,2]
[349998764,1737558638408,-150.99,0.00020951,2]
[349998765,1737558638418,-1838.57,0.00020951,2]
[349998766,1737558638427,-158.61225834,0.00020954,2]
[349998767,1737558638436,-467.58908082,0.00020962,2]
[349998768,1737558638445,-1091.3,0.00020965,2]
[349998769,1737558638454,-1842.51,0.00020965,2]
[349998770,1737558638463,-926.14,0.00020965,2]
[349998771,1737558638473,-500.0,0.00020965,2]
[349998772,1737558638482,-538.41,0.00020965,2]
[349998773,1737558638492,-740.01,0.00020965,2]
[349998774,1737558638501,-500.0,0.00020965,2]
[349998775,1737558638510,-1107.53,0.00020965,2]
[349998776,1737558638519,-294.35438498,0.00020965,2]
[349998777,1737558638543,-1442.41561502,0.00020965,2]
[349998778,1737558638553,-1598.8,0.00020965,2]
[349998779,1737558638563,-889.80085598,0.00020965,2]
[349998780,1737558638574,-251.32914402,0.00020965,2]
[349998781,1737558638584,-1184.31,0.00020965,2]
[349998782,1737558638593,-500.0,0.00020965,2]
[349998783,1737558638602,-1176.39148184,0.00020965,2]
[349998784,1737558638615,-1420.42851816,0.00020965,2]
[349998785,1737558638625,-18.1120936,0.00020965,2]
[349998786,1737558638661,-500.0,0.00020847,2]
[349998787,1737558638671,-594.72657998,0.00020965,2]
[349998790,1737558638698,-162.77132642,0.00020965,2]
[349998792,1737558638708,-1834.19,0.00020965,2]
[349998794,1737558638717,-811.51,0.00020965,2]
[349998796,1737558638726,-500.0,0.00020965,2]
[349998798,1737558638738,-500.0,0.00020965,2]
[349998800,1737558638747,-500.0,0.00020965,2]
[349998802,1737558638757,-633.53,0.00020965,2]
[349998804,1737558638766,-500.0,0.00020965,2]
[349998806,1737558638775,-500.0,0.00020965,2]
[349998808,1737558638785,-363.36012096,0.00020965,2]
[349998811,1737558638796,-690.26987904,0.00020965,2]
[349998813,1737558638805,-517.24,0.00020965,2]
[349998814,1737558638815,-900.27,0.00020965,2]
[349998817,1737558638824,-1239.41,0.00020965,2]
[349998819,1737558638834,-500.0,0.00020966,2]
[349998820,1737558638843,-500.0,0.00020966,2]
[349998822,1737558638852,-500.0,0.00020966,2]
[349998824,1737558638862,-500.0,0.00020966,2]
[349998827,1737558638871,-500.0,0.00020966,2]
[349998828,1737558638881,-500.0,0.00020966,7]
[349998830,1737558638890,-500.0,0.00020966,2]
[349998832,1737558638899,-500.0,0.00020966,2]
[349998834,1737558638908,-500.0,0.00020966,2]
[349998836,1737558638918,-500.0,0.00020966,2]
[349998838,1737558638927,-500.0,0.00020966,2]
[349998840,1737558638936,-500.0,0.00020966,2]
[349998842,1737558638947,-500.0,0.00020966,2]
[349998844,1737558638956,-500.0,0.00020966,2]
[349998846,1737558638965,-500.0,0.00020966,2]
[349998848,1737558638975,-500.0,0.00020966,2]
[349998850,1737558638986,-500.0,0.00020966,2]
[349998852,1737558638995,-500.0,0.00020966,2]
[349998854,1737558639004,-500.0,0.00020966,2]
[349998856,1737558639013,-513.14781441,0.00020966,2]
[349998858,1737558639023,-508.79697271,0.00020966,2]
[349998860,1737558639034,-500.0,0.00020966,2]
[349998861,1737558639043,-500.0,0.00020966,2]
[349998862,1737558639053,-500.0,0.00020966,2]
[349998863,1737558639063,-500.0,0.00020966,2]
[349998864,1737558639072,-500.0,0.00020966,2]
[349998865,1737558639082,-500.0,0.00020966,2]
[349998866,1737558639092,-500.0,0.00020966,2]
[349998867,1737558639103,-500.0,0.00020966,2]
[349998868,1737558639113,-397.6979634,0.00020966,2]
[349998869,1737558639123,-500.0,0.00020966,2]
[349998870,1737558639133,-196.43894906,0.00020966,2]
[349998872,1737558639143,-500.0,0.00020966,2]
[349998874,1737558639153,-500.0,0.00020966,2]
[349998876,1737558639163,-500.0,0.00020966,2]
[349998878,1737558639173,-500.0,0.00020966,2]
[349998880,1737558639183,-500.0,0.00020966,2]
[349998882,1737558639193,-500.0,0.00020966,2]
[349998884,1737558639203,-485.40734964,0.00020966,2]
[349998886,1737558639213,-526.11,0.00020966,2]
[349998888,1737558639223,-500.0,0.00020966,2]
[349998890,1737558639232,-500.0,0.00020966,2]
[349998892,1737558639242,-500.0,0.00020966,2]
[349998894,1737558639252,-500.0,0.00020966,2]
[349998896,1737558639260,-585.95,0.00020966,2]
[349998898,1737558639269,-500.0,0.00020966,2]
[349998900,1737558639279,-500.0,0.00020966,2]
[349998918,1737558639438,-500.0,0.00020966,2]
[349998920,1737558639451,-500.0,0.00020966,2]
[349998922,1737558639461,-500.0,0.00020966,2]
[349998924,1737558639470,-571.11,0.00020966,2]
[349998926,1737558639480,-500.0,0.00020966,2]
[349998928,1737558639490,-500.0,0.00020966,2]
[349998930,1737558639499,-500.0,0.00020966,2]
[349998932,1737558639509,-500.0,0.00020966,2]
[349998934,1737558639518,-589.48,0.00020966,2]
[349998936,1737558639527,-500.0,0.00020966,2]
[349998938,1737558639537,-500.0,0.00020966,2]
[349998940,1737558639546,-500.0,0.00020966,2]
[349998942,1737558639556,-500.0,0.00020966,2]
[349998945,1737558639565,-500.0,0.00020966,2]
[349998948,1737558639574,-500.0,0.00020966,2]
[349998950,1737558639583,-500.0,0.00020966,2]
[349998953,1737558639593,-500.0,0.00020966,2]
[349998955,1737558639602,-500.0,0.00020966,2]
[349998957,1737558639611,-500.0,0.00020966,2]
[349998959,1737558639620,-500.0,0.00020966,2]
[349998961,1737558639629,-500.0,0.00020966,2]
[349998963,1737558639638,-500.0,0.00020966,2]
[349998965,1737558639649,-500.0,0.00020966,2]
[349998967,1737558639658,-500.0,0.00020966,2]
[349998969,1737558639667,-500.0,0.00020966,2]
[349998971,1737558639677,-500.0,0.00020966,2]
[349998973,1737558639686,-500.0,0.00020966,2]
[349998975,1737558639695,-513.92112885,0.00020966,2]
[349998977,1737558639704,-500.0,0.00020966,2]
[349998979,1737558639714,-500.0,0.00020966,2]
[349998981,1737558639723,-500.0,0.00020966,2]
[349998983,1737558639733,-422.14119181,0.00020966,2]
[349998985,1737558639743,-500.0,0.00020966,2]
[349998987,1737558639753,-500.0,0.00020966,2]
[349998989,1737558639762,-500.0,0.00020966,2]
[349998991,1737558639771,-505.48937043,0.00020966,2]
[349998993,1737558639781,-500.0,0.00020966,2]
[349998995,1737558639790,-500.0,0.00020966,2]
[349998997,1737558639799,-500.0,0.00020966,2]
[349998999,1737558639809,-638.58,0.00020966,2]
[349999001,1737558639818,-500.0,0.00020966,2]
[349999003,1737558639827,-500.0,0.00020966,2]
[349999005,1737558639837,-282.32353626,0.00020966,2]
[349999030,1737558640066,-217.67646374,0.00020966,2]
[349999032,1737558640076,-500.0,0.00020966,2]
[349999034,1737558640086,-648.43,0.00020966,2]
[349999036,1737558640097,-500.0,0.00020966,2]
[349999038,1737558640110,-500.0,0.00020966,2]
[349999040,1737558640120,-500.0,0.00020966,2]
[349999042,1737558640129,-500.0,0.00020966,2]
[349999044,1737558640138,-500.0,0.00020966,2]
[349999046,1737558640150,-500.0,0.00020966,2]
[349999048,1737558640159,-500.0,0.00020966,2]
[349999050,1737558640169,-500.0,0.00020966,2]
[349999052,1737558640181,-500.0,0.00020966,2]
[349999054,1737558640191,-781.7,0.00020966,2]
[349999056,1737558640200,-544.47744333,0.00020966,2]
[349999058,1737558640210,-465.30992431,0.00020966,2]
[349999090,1737558640513,-419.0924,0.00020847,2]
[349999095,1737558640542,-80.9076,0.00020847,2]